fUST/lending_fUST_20250528
["ID","MTS","AMOUNT","RATE_DAILY","PERIOD"]
[362569525,1748363442543,-430.0,0.00019726,2]
[362569526,1748363442552,-430.0,0.00019726,2]
[362569527,1748363442562,-430.0,0.00019726,2]
[362569528,1748363442572,-516.18,0.00019726,2]
[362569530,1748363442581,-430.0,0.00019726,2]
[362569532,1748363442591,-512.98,0.00019726,2]
[362569534,1748363442600,-430.0,0.00019726,2]
[362569536,1748363442611,-430.0,0.00019726,2]
[362569537,1748363442621,-430.0,0.00019726,2]
[362569539,1748363442633,-910.95,0.00019726,2]
[362569542,1748363442642,-430.0,0.00019726,2]
[362569545,1748363442653,-930.66,0.00019726,2]
[362569546,1748363442664,-430.0,0.00019726,2]
[362569548,1748363442673,-430.0,0.00019726,2]
[362569550,1748363442686,-430.0,0.00019726,2]
[362569552,1748363442695,-430.0,0.00019726,2]
[362569555,1748363442705,-430.0,0.00019726,2]
[362569558,1748363442714,-430.0,0.00019726,2]
[362569561,1748363442724,-312.4,0.00019726,2]
[362569563,1748363442734,-430.0,0.00019726,2]
[362569565,1748363442745,-430.0,0.00019726,2]
[362569568,1748363442755,-462.54,0.00019726,2]
[362569570,1748363442764,-430.0,0.00019726,2]
[362569573,1748363442775,-430.0,0.00019726,2]
[362569576,1748363442784,-430.0,0.00019726,2]
[362569579,1748363442793,-430.0,0.00019726,2]
[362569582,1748363442803,-430.0,0.00019726,2]
[362569586,1748363442813,-430.0,0.00019726,2]
[362569589,1748363442823,-241.2,0.00019726,2]
[362569591,1748363442832,-430.0,0.00019726,2]
[362569595,1748363442842,-169.3,0.00019726,2]
[362569597,1748363442852,-430.0,0.00019726,2]
[362569601,1748363442861,-430.0,0.00019726,2]
[362569605,1748363442871,-430.0,0.00019726,2]
[362569607,1748363442880,-206.14,0.00019726,2]
[362569610,1748363442890,-178.54,0.00019726,2]
[362569612,1748363442899,-430.0,0.00019726,2]
[362569614,1748363442909,-430.0,0.00019726,2]
[362569616,1748363442919,-430.0,0.00019726,2]
[362569618,1748363442928,-500.0,0.00019832,2]
[362569621,1748363442941,-2810.11,0.00019923,2]
[362569623,1748363442950,-3863.95619068,0.00019934,2]
[362569625,1748363442960,-234.66,0.0002,2]
[362569627,1748363442969,-406.94,0.0002,2]
[362569629,1748363442978,-430.0,0.0002,2]
[362569631,1748363442987,-151.0,0.0002,2]
[362569633,1748363442996,-444.58815403,0.0002,2]
[362569635,1748363443006,-463.82,0.0002,2]
[362569637,1748363443015,-220.26015,0.0002,2]
[362569639,1748363443025,-151.0,0.0002,2]
[362569641,1748363443035,-427.44,0.0002,2]
[362569643,1748363443045,-430.0,0.0002,2]
[362569645,1748363443054,-430.0,0.0002,2]
[362569647,1748363443064,-258.357521,0.0002,2]
[362569649,1748363443074,-151.0,0.0002,2]
[362569651,1748363443085,-430.0,0.0002,2]
[362569653,1748363443095,-480.5,0.0002,2]
[362569655,1748363443104,-430.0,0.0002,2]
[362569657,1748363443114,-151.0,0.0002,2]
[362569659,1748363443124,-430.0,0.0002,2]
[362569661,1748363443133,-430.0,0.0002,2]
[362569663,1748363443143,-430.0,0.0002,2]
[362569665,1748363443154,-512.98,0.0002,2]
[362569667,1748363443163,-194.7,0.0002,2]
[362569669,1748363443173,-430.0,0.0002,2]
[362569671,1748363443184,-430.0,0.0002,2]
[362569673,1748363443194,-910.95,0.0002,2]
[362569675,1748363443204,-430.0,0.0002,2]
[362569677,1748363443214,-930.66,0.0002,2]
[362569679,1748363443223,-430.0,0.0002,2]
[362569681,1748363443233,-430.0,0.0002,2]
[362569683,1748363443243,-430.0,0.0002,2]
[362569685,1748363443252,-558.96,0.0002,2]
[362569687,1748363443262,-355.4,0.0002,2]
[362569689,1748363443271,-430.0,0.0002,2]
[362569691,1748363443281,-151.0,0.0002,2]
[362569693,1748363443291,-430.0,0.0002,2]
[362569695,1748363443300,-430.0,0.0002,2]
[362569697,1748363443311,-430.0,0.0002,2]
[362569699,1748363443321,-430.0,0.0002,2]
[362569701,1748363443331,-262.44,0.0002,2]
[362569703,1748363443341,-500.42,0.0002,2]
[362569705,1748363443351,-430.0,0.0002,2]
[362569707,1748363443360,-354.86,0.0002,2]
[362569710,1748363443370,-228.74,0.0002,2]
[362569712,1748363443379,-430.0,0.0002,2]
[362569714,1748363443389,-430.0,0.0002,2]
[362569716,1748363443398,-430.0,0.0002,2]
[362569718,1748363443407,-430.0,0.0002,2]
[362569720,1748363443416,-430.0,0.0002,2]
[362569722,1748363443426,-430.0,0.0002,2]
[362569724,1748363443437,-253.80179823,0.00020055,2]
[362569726,1748363443447,-260.8706176,0.00020173,2]
[362569728,1748363443457,-686.657862,0.00020187,2]
[362569730,1748363443466,-3863.95619068,0.0002021,2]
[362569732,1748363443476,-430.0,0.00020273,2]
[362569734,1748363443486,-151.0,0.00020273,2]
[362569736,1748363443496,-300.38,0.00020273,2]
[362569738,1748363443505,-430.0,0.00020273,2]
[362569740,1748363443514,-430.0,0.00020273,2]
[362569742,1748363443523,-480.5,0.00020273,2]
[362569744,1748363443534,-430.0,0.00020273,2]
[362569746,1748363443544,-430.0,0.00020273,2]
[362569748,1748363443553,-430.0,0.00020273,2]
[362569750,1748363443562,-430.0,0.00020273,2]
[362569752,1748363443572,-133.74971489,0.00020273,2]
[362569756,1748363443605,-430.0,0.00019178,2]
[362569758,1748363443620,-430.0,0.00019452,2]
[362569760,1748363443632,-379.23028511,0.00020273,2]
[362569762,1748363443641,-430.0,0.00020273,2]
[362569764,1748363443651,-430.0,0.00020273,2]
[362569766,1748363443660,-910.95,0.00020273,2]
[362569768,1748363443670,-430.0,0.00020273,2]
[362569770,1748363443680,-930.66,0.00020273,2]
[362569772,1748363443691,-430.0,0.00020273,2]
[362569774,1748363443700,-430.0,0.00020273,2]
[362569776,1748363443709,-430.0,0.00020273,2]
[362569778,1748363443722,-430.0,0.00020273,2]
[362569780,1748363443736,-430.0,0.00020273,2]
[362569783,1748363443749,-394.32,0.00020273,2]
[362569785,1748363443759,-430.0,0.00020273,2]
[362569786,1748363443768,-430.0,0.00020273,2]
[362569788,1748363443778,-430.0,0.00020273,2]
[362569790,1748363443788,-430.0,0.00020273,2]
[362569792,1748363443797,-430.0,0.00020273,2]
[362569794,1748363443806,-430.0,0.00020273,2]
[362569796,1748363443819,-420.14,0.00020273,2]
[362569798,1748363443828,-430.0,0.00020273,2]
[362569800,1748363443837,-430.0,0.00020273,2]
[362569802,1748363443847,-587.0,0.00020277,2]
[362569804,1748363443857,-5000.0,0.00020471,2]
[362569806,1748363443867,-3595.64204661,0.00020471,2]
[362569808,1748363443879,-1404.35795339,0.00020471,2]
[362569810,1748363443888,-207.4,0.00020471,2]
[362569812,1748363443898,-5000.0,0.00020471,2]
[362569814,1748363443907,-5000.0,0.00020471,2]
[362569817,1748363443918,-1268.8208484,0.00020471,2]
[362569819,1748363443930,-3731.1791516,0.00020471,2]
[362569821,1748363443939,-5000.0,0.00020471,2]
[362569823,1748363443948,-3012.89748345,0.00020471,2]
[362569825,1748363443957,-3863.95619068,0.00020486,3]
[362569827,1748363443967,-151.0,0.00020547,2]
[362569829,1748363443976,-151.0,0.00020547,2]
[362569831,1748363443985,-151.0,0.00020547,2]
[362569833,1748363443995,-473.74,0.00020547,2]
[362569835,1748363444005,-299.838574,0.00020547,2]
[362569837,1748363444015,-287.90158132,0.00020547,2]
[362569839,1748363444024,-434.52,0.00020547,2]
[362569841,1748363444034,-480.5,0.00020547,2]
[362569843,1748363444044,-430.0,0.00020547,2]
[362569845,1748363444053,-135.42068867,0.00020547,2]
[362570066,1748363446238,-294.57931133,0.00020547,2]
[362570068,1748363446247,-130.27406912,0.00020547,2]
[362570125,1748363446793,-33.68593088,0.00020547,2]
[362570127,1748363446803,-430.0,0.00020547,2]
[362570129,1748363446812,-512.98,0.00020547,2]
[362570131,1748363446822,-430.0,0.00020547,2]
[362570133,1748363446832,-430.0,0.00020547,2]
[362570135,1748363446842,-910.95,0.00020547,2]
[362570137,1748363446851,-95.09445731,0.00020547,2]
[362570139,1748363446863,-334.90554269,0.00020547,2]
[362570141,1748363446872,-930.66,0.00020547,2]
[362570143,1748363446881,-261.08,0.00020547,2]
[362570145,1748363446891,-430.0,0.00020547,2]
[362570147,1748363446900,-430.0,0.00020547,2]
[362570149,1748363446911,-430.0,0.00020547,2]
[362570151,1748363446921,-430.0,0.00020547,2]
[362570153,1748363446931,-430.0,0.00020547,2]
[362570155,1748363446940,-430.0,0.00020547,2]
[362570157,1748363446949,-430.0,0.00020547,2]
[362570159,1748363446958,-374.36,0.00020547,2]
[362570161,1748363446968,-430.0,0.00020547,2]
[362570163,1748363446977,-430.0,0.00020547,2]
[362570165,1748363446987,-430.0,0.00020547,2]
[362570167,1748363446996,-430.0,0.00020547,2]
[362570169,1748363447006,-200.0,0.00020628,2]
[362570171,1748363447015,-842.5625,0.00020762,3]
[362570173,1748363447026,-3341.52282464,0.00020762,3]
[362573421,1748363640707,966.99860654,0.000161,2]
[362573448,1748364287588,617.992075,0.00013699,2]
[362573451,1748364316456,999.42980039,0.000161,2]
[362574178,1748364444127,-200.69561508,0.00016243,2]
[362574179,1748364444149,-589.2462817,0.00018102,2]
[362574180,1748364444172,-401.58249977,0.00018177,2]
[362574238,1748364573172,200.0,0.00015347,7]
[362574255,1748364632348,-216.98411846,0.000169,2]
[362574256,1748364632357,-300.0,0.00016999,2]
[362574257,1748364632367,-171.93554516,0.00016999,2]
[362574258,1748364632454,-128.06445484,0.00016999,2]
[362574259,1748364632463,-18682.95905189,0.00017,3]
[362574268,1748364632616,-546.50562813,0.00017,3]
[362574328,1748364638368,-500.0,0.00016999,2]
[362574330,1748364638378,-134.61780892,0.00016999,2]
[362574532,1748364640527,-300.0,0.00016998,2]
[362574534,1748364640537,-365.38219108,0.00016999,2]
[362574536,1748364640547,-254.8058123,0.00016999,2]
[362574539,1748364640558,-187.6959702,0.00016999,2]
[362574541,1748364640569,-500.0,0.00016999,2]
[362574543,1748364640578,-221.32813216,0.00016999,2]
[362574582,1748364640825,-278.67186784,0.00016999,2]
[362574584,1748364640835,-500.0,0.00016999,2]
[362574586,1748364640845,-500.0,0.00016999,2]
[362574588,1748364640855,-80.39908281,0.00016999,2]
[362575042,1748364645246,-419.60091719,0.00016999,2]
[362575044,1748364645256,-500.0,0.00016999,2]
[362575046,1748364645267,-500.0,0.00016999,2]
[362575048,1748364645277,-500.0,0.00016999,2]
[362575050,1748364645287,-500.0,0.00016999,2]
[362575052,1748364645297,-500.0,0.00016999,2]
[362575054,1748364645307,-499.54201633,0.00016999,2]
[362575056,1748364645317,-500.0,0.00016999,2]
[362575058,1748364645327,-500.0,0.00016999,2]
[362575060,1748364645338,-500.0,0.00016999,2]
[362575062,1748364645347,-196.21579642,0.00016999,2]
[362575064,1748364645359,-500.0,0.00016999,2]
[362575067,1748364645368,-178.32839605,0.00016999,2]
[362575069,1748364645378,-357.51314817,0.00016999,2]
[362575071,1748364645388,-500.0,0.00016999,2]
[362575073,1748364645398,-264.03851793,0.00016999,2]
[362575075,1748364645408,-144862.84343927,0.00017,3]
[362575077,1748364645418,-225.91295469,0.00017808,2]
[362575079,1748364645427,-216.98411844,0.00017989,2]
[362575081,1748364645438,-565.41610683,0.00018177,2]
[362575083,1748364645447,-420.0,0.00018567,2]
[362575085,1748364645457,-463.81187231,0.000189,2]
[362575087,1748364645467,-216.98411844,0.00019078,2]
[362575089,1748364645478,-221.8996673,0.00019178,2]
[362575091,1748364645488,-430.0,0.00019178,2]
[362575093,1748364645498,-430.0,0.00019178,2]
[362575095,1748364645508,-430.0,0.00019178,2]
[362575097,1748364645519,-430.0,0.00019178,2]
[362575099,1748364645529,-372.11731761,0.00019178,2]
[362575101,1748364645539,-352.29109289,0.00019178,2]
[362575103,1748364645549,-430.0,0.00019178,2]
[362575105,1748364645558,-430.0,0.00019178,2]
[362575107,1748364645568,-430.0,0.00019178,2]
[362575109,1748364645578,-446.63,0.00019178,2]
[362575111,1748364645587,-430.0,0.00019178,2]
[362575114,1748364645606,-438.64760731,0.00019178,2]
[362575116,1748364645616,-430.0,0.00019178,2]
[362575118,1748364645626,-338.49200306,0.00019178,2]
[362575120,1748364645636,-430.0,0.00019178,2]
[362575123,1748364645648,-430.0,0.00019178,2]
[362575125,1748364645658,-430.0,0.00019178,2]
[362575127,1748364645669,-430.0,0.00019178,2]
[362575129,1748364645679,-430.0,0.00019178,2]
[362575131,1748364645690,-430.0,0.00019178,2]
[362575133,1748364645700,-345.09752478,0.00019178,2]
[362575135,1748364645710,-430.0,0.00019178,2]
[362575137,1748364645719,-430.0,0.00019178,2]
[362575139,1748364645735,-430.0,0.00019178,2]
[362575141,1748364645745,-325.04529126,0.00019178,2]
[362575143,1748364645755,-430.0,0.00019178,2]
[362575145,1748364645766,-370.0,0.00019178,2]
[362575147,1748364645776,-440.0,0.00019178,2]
[362575149,1748364645787,-546.4362359,0.00019178,2]
[362575151,1748364645797,-430.0,0.00019178,2]
[362575153,1748364645807,-410.0,0.00019178,2]
[362575156,1748364645818,-430.0,0.00019178,2]
[362575157,1748364645827,-394.30497937,0.00019178,2]
[362575159,1748364645836,-430.0,0.00019178,2]
[362575161,1748364645846,-430.0,0.00019178,2]
[362575163,1748364645856,-355.53811815,0.00019178,2]
[362575166,1748364645866,-430.0,0.00019178,2]
[362575167,1748364645876,-430.0,0.00019178,2]
[362575170,1748364645886,-430.0,0.00019178,2]
[362575172,1748364645896,-500.0,0.00019178,2]
[362575174,1748364645906,-430.0,0.00019178,2]
[362575176,1748364645916,-430.0,0.00019178,2]
[362575178,1748364645926,-549.74,0.00019178,2]
[362575180,1748364645936,-430.0,0.00019178,2]
[362575199,1748364646109,-430.0,0.00019178,2]
[362575201,1748364646120,-430.0,0.00019178,2]
[362575203,1748364646130,-430.0,0.00019178,2]
[362575205,1748364646141,-504.22,0.00019178,2]
[362575207,1748364646153,-430.0,0.00019178,2]
[362575209,1748364646163,-430.0,0.00019178,2]
[362575211,1748364646172,-430.0,0.00019178,2]
[362575213,1748364646183,-430.0,0.00019178,2]
[362575215,1748364646192,-430.0,0.00019178,2]
[362575217,1748364646201,-430.0,0.00019178,2]
[362575219,1748364646211,-430.0,0.00019178,2]
[362575221,1748364646221,-430.0,0.00019178,2]
[362575223,1748364646233,-430.0,0.00019178,2]
[362575225,1748364646243,-430.0,0.00019178,2]
[362575227,1748364646252,-430.0,0.00019178,2]
[362575229,1748364646262,-430.0,0.00019178,2]
[362575231,1748364646271,-430.0,0.00019178,2]
[362575233,1748364646280,-430.0,0.00019178,2]
[362575235,1748364646290,-430.0,0.00019178,2]
[362575237,1748364646303,-430.0,0.00019178,2]
[362575239,1748364646312,-430.0,0.00019178,2]
[362575241,1748364646323,-430.0,0.00019178,2]
[362575243,1748364646332,-430.0,0.00019178,2]
[362575245,1748364646342,-430.0,0.00019178,2]
[362575247,1748364646352,-430.0,0.00019178,2]
[362575249,1748364646361,-430.0,0.00019178,2]
[362575251,1748364646370,-430.0,0.00019178,2]
[362575253,1748364646380,-430.0,0.00019178,2]
[362575255,1748364646389,-370.0,0.00019178,2]
[362575257,1748364646399,-430.0,0.00019178,2]
[362575259,1748364646409,-391.70334469,0.00019178,2]
[362575261,1748364646419,-430.0,0.00019178,2]
[362575263,1748364646429,-430.0,0.00019178,2]
[362575265,1748364646438,-430.0,0.00019178,2]
[362575267,1748364646448,-430.0,0.00019178,2]
[362575269,1748364646458,-430.0,0.00019178,2]
[362575271,1748364646467,-430.0,0.00019178,2]
[362575273,1748364646476,-430.0,0.00019178,2]
[362575275,1748364646485,-310.0,0.00019178,2]
[362575277,1748364646494,-430.0,0.00019178,2]
[362575279,1748364646503,-220.31,0.00019178,2]
[362575280,1748364646514,-430.0,0.00019178,2]
[362575281,1748364646523,-430.0,0.00019178,2]
[362575282,1748364646533,-430.0,0.00019178,2]
[362575283,1748364646543,-430.0,0.00019178,2]
[362575284,1748364646552,-430.0,0.00019178,2]
[362575285,1748364646562,-430.0,0.00019178,2]
[362575286,1748364646572,-430.0,0.00019178,2]
[362575287,1748364646581,-430.0,0.00019178,2]
[362575288,1748364646591,-430.0,0.00019178,2]
[362575290,1748364646601,-430.0,0.00019178,2]
[362575292,1748364646610,-430.0,0.00019178,2]
[362575294,1748364646620,-430.0,0.00019178,2]
[362575297,1748364646630,-430.0,0.00019178,2]
[362575299,1748364646640,-430.0,0.00019178,2]
[362575301,1748364646650,-554.06,0.00019178,2]
[362575303,1748364646664,-430.0,0.00019178,2]
[362575305,1748364646674,-482.40494254,0.00019178,2]
[362575307,1748364646684,-430.0,0.00019178,2]
[362575309,1748364646693,-430.0,0.00019178,2]
[362575312,1748364646703,-230.82570473,0.00019178,2]
[362575314,1748364646713,-430.0,0.00019178,2]
[362575316,1748364646723,-430.0,0.00019178,2]
[362575318,1748364646733,-249.64013652,0.00019178,2]
[362575320,1748364646743,-430.0,0.00019178,2]
[362575322,1748364646753,-430.0,0.00019178,2]
[362575324,1748364646764,-430.0,0.00019178,2]
[362575326,1748364646774,-430.0,0.00019178,2]
[362575328,1748364646784,-430.0,0.00019178,2]
[362575330,1748364646793,-430.0,0.00019178,2]
[362575332,1748364646802,-430.0,0.00019178,2]
[362575334,1748364646812,-430.0,0.00019178,2]
[362575336,1748364646823,-683.21,0.00019178,2]
[362575338,1748364646832,-456.26544977,0.00019178,2]
[362575340,1748364646842,-430.0,0.00019178,2]
[362575342,1748364646852,-430.0,0.00019178,2]
[362575344,1748364646863,-430.0,0.00019178,2]
[362575346,1748364646872,-430.0,0.00019178,2]
[362575348,1748364646882,-430.0,0.00019178,2]
[362575351,1748364646892,-430.0,0.00019178,2]
[362575353,1748364646902,-865.95,0.00019178,2]
[362575355,1748364646912,-430.0,0.00019178,2]
[362575357,1748364646921,-430.0,0.00019178,2]
[362575359,1748364646930,-411.53095189,0.00019178,2]
[362575361,1748364646941,-208.64412834,0.00019178,2]
[362575363,1748364646951,-461.7,0.00019178,2]
[362575365,1748364646961,-430.0,0.00019178,2]
[362575367,1748364646971,-430.0,0.00019178,2]
[362575369,1748364646980,-430.0,0.00019178,2]
[362575371,1748364646991,-430.0,0.00019178,2]
[362575373,1748364647000,-430.0,0.00019178,2]
[362575375,1748364647009,-236.30021752,0.00019178,2]
[362575377,1748364647019,-430.0,0.00019178,2]
[362575379,1748364647028,-430.0,0.00019178,2]
[362575381,1748364647037,-430.0,0.00019178,2]
[362575383,1748364647047,-430.0,0.00019178,2]
[362575385,1748364647056,-430.0,0.00019178,2]
[362575387,1748364647066,-430.0,0.00019178,2]
[362575389,1748364647075,-433.45,0.00019178,2]
[362575391,1748364647085,-430.0,0.00019178,2]
[362575393,1748364647095,-430.0,0.00019178,2]
[362575395,1748364647105,-430.0,0.00019178,2]
[362575397,1748364647115,-430.0,0.00019178,2]
[362575399,1748364647124,-430.0,0.00019178,2]
[362575401,1748364647133,-565.63451897,0.00019178,2]
[362575403,1748364647147,-430.0,0.00019178,2]
[362575405,1748364647157,-537.35,0.00019178,2]
[362575407,1748364647167,-430.0,0.00019178,2]
[362575409,1748364647177,-238.40839644,0.00019178,2]
[362575411,1748364647189,-430.0,0.00019178,2]
[362575413,1748364647199,-365.5594367,0.00019178,2]
[362575417,1748364647222,-430.0,0.00019178,2]
[362575419,1748364647235,-430.0,0.00019178,2]
[362575421,1748364647244,-430.0,0.00019178,2]
[362575423,1748364647255,-430.0,0.00019178,2]
[362575425,1748364647266,-430.0,0.00019178,2]
[362575427,1748364647276,-430.0,0.00019178,2]
[362575429,1748364647285,-430.0,0.00019178,2]
[362575431,1748364647295,-430.0,0.00019178,2]
[362575434,1748364647306,-430.0,0.00019178,2]
[362575436,1748364647316,-474.03,0.00019178,2]
[362575438,1748364647326,-430.0,0.00019178,2]
[362575440,1748364647339,-430.0,0.00019178,2]
[362575442,1748364647349,-430.0,0.00019178,2]
[362575444,1748364647359,-430.0,0.00019178,2]
[362575446,1748364647370,-430.0,0.00019178,2]
[362575448,1748364647380,-267.38590162,0.00019178,2]
[362575450,1748364647390,-232.48265705,0.00019178,2]
[362575453,1748364647400,-430.0,0.00019178,2]
[362575455,1748364647410,-313.57907916,0.00019178,2]
[362578048,1748364814040,-184.1007928,0.0001611,2]
[362578050,1748364922517,29000.0,0.00016,3]
[362578051,1748364922542,2078.80697595,0.00016,3]
[362578052,1748364923396,-227.17695648,0.00016,3]
[362578055,1748365169372,-300.0,0.00015998,2]
[362578056,1748365169395,-500.0,0.00015999,2]
[362578057,1748365169416,-309.75124775,0.00015999,2]
[362578058,1748365169441,-500.0,0.00015999,2]
[362578059,1748365169465,-500.0,0.00015999,2]
[362578060,1748365169488,-500.0,0.00015999,2]
[362578061,1748365169510,-500.0,0.00015999,2]
[362578062,1748365169532,-399.67941143,0.00015999,2]
[362578063,1748365169555,-447.56934082,0.00015999,2]
[362578064,1748365224317,500.0,0.00024658,120]
[362578065,1748365231061,500.0,0.00024658,120]
[362578066,1748365268707,500.0,0.00024658,120]
[362578067,1748365275433,500.0,0.00024658,120]
[362578069,1748365285107,500.0,0.00024658,120]
[362579021,1748365736704,177.27856239,0.00021917,30]
[362579023,1748365766230,-157.45112764,0.000159,2]
[362579024,1748365766252,-1200.0,0.00015997,2]
[362579025,1748365766274,-500.0,0.00015998,2]
[362579026,1748365766294,-300.0,0.00015998,2]
[362579027,1748365766314,-300.0,0.00015998,2]
[362579028,1748365766337,-52.43065918,0.00015999,2]
[362579029,1748365766359,-500.0,0.00015999,2]
[362579030,1748365766380,-500.0,0.00015999,2]
[362579031,1748365766402,-500.0,0.00015999,2]
[362579032,1748365766424,-500.0,0.00015999,2]
[362579033,1748365766446,-500.0,0.00015999,2]
[362579034,1748365766467,-500.0,0.00015999,2]
[362579035,1748365766487,-500.0,0.00015999,2]
[362579036,1748365766508,-500.0,0.00015999,2]
[362579037,1748365766534,-500.0,0.00015999,2]
[362579038,1748365766556,-500.0,0.00015999,2]
[362579039,1748365766579,-500.0,0.00015999,2]
[362579040,1748365766606,-500.0,0.00015999,2]
[362579041,1748365766628,-500.0,0.00015999,2]
[362579042,1748365766650,-317.37366087,0.00015999,2]
[362579043,1748365766672,-500.0,0.00015999,2]
[362579044,1748365766694,-500.0,0.00015999,2]
[362579045,1748365766715,-43171.86135035,0.00016,3]
[362579046,1748365766736,-12484.25424539,0.00016,3]
[362579179,1748365818350,587.092471,0.00013699,2]
[362579212,1748365832486,-172.2915879,0.00016,3]
[362579214,1748365832496,-1095.8992072,0.0001611,2]
[362579216,1748365832505,-184.1007928,0.00016275,2]
[362579218,1748365832515,-500.0,0.00016697,2]
[362579220,1748365832524,-157.45112762,0.000174,2]
[362579222,1748365832533,-500.0,0.00017575,2]
[362579223,1748365832543,-300.0,0.00018499,2]
[362579226,1748365832552,-219.0,0.00018499,2]
[362579227,1748365832564,-500.0,0.000185,2]
[362579228,1748365832574,-296.60997948,0.00018714,2]
[362579229,1748365832584,-500.00160019,0.000189,2]
[362579230,1748365832593,-157.45112762,0.000189,2]
[362579231,1748365832603,-567.81631446,0.00019178,2]
[362579232,1748365832613,-454.7468304,0.00019178,2]
[362579233,1748365832622,-430.0,0.00019178,2]
[362579234,1748365832632,-385.56374583,0.00019178,2]
[362579236,1748365832642,-430.0,0.00019178,2]
[362579237,1748365832652,-430.0,0.00019178,2]
[362579239,1748365832662,-430.0,0.00019178,2]
[362579241,1748365832671,-430.0,0.00019178,2]
[362579243,1748365832680,-430.0,0.00019178,2]
[362579245,1748365832690,-430.0,0.00019178,2]
[362579247,1748365832699,-206.34438071,0.00019178,2]
[362579249,1748365832708,-436.83372662,0.00019178,2]
[362579251,1748365832718,-430.0,0.00019178,2]
[362579253,1748365832728,-347.77,0.00019178,2]
[362579255,1748365832737,-430.0,0.00019178,2]
[362579256,1748365832746,-430.0,0.00019178,2]
[362579257,1748365832756,-430.0,0.00019178,2]
[362579258,1748365832766,-237.55637685,0.00019178,2]
[362579259,1748365832778,-192.44362315,0.00019178,2]
[362579260,1748365832788,-572.12,0.00019178,2]
[362579261,1748365832797,-430.0,0.00019178,2]
[362579262,1748365832807,-430.0,0.00019178,2]
[362579263,1748365832817,-430.0,0.00019178,2]
[362579264,1748365832826,-327.28320453,0.00019178,2]
[362579265,1748365832837,-430.0,0.00019178,2]
[362579266,1748365832847,-430.0,0.00019178,2]
[362579267,1748365832856,-430.0,0.00019178,2]
[362579268,1748365832866,-356.15844615,0.00019178,2]
[362579269,1748365832876,-430.0,0.00019178,2]
[362579270,1748365832886,-430.0,0.00019178,2]
[362579271,1748365832896,-430.0,0.00019178,2]
[362579272,1748365832905,-396.7507858,0.00019178,2]
[362579273,1748365832915,-430.0,0.00019178,2]
[362579274,1748365832925,-430.0,0.00019178,2]
[362579275,1748365832935,-430.0,0.00019178,2]
[362579276,1748365832945,-430.0,0.00019178,2]
[362579277,1748365832955,-430.0,0.00019178,2]
[362579278,1748365832966,-430.0,0.00019178,2]
[362579279,1748365832975,-430.0,0.00019178,2]
[362579280,1748365832985,-430.0,0.00019178,2]
[362579281,1748365832994,-430.0,0.00019178,2]
[362579282,1748365833003,-430.0,0.00019178,2]
[362579283,1748365833013,-431.88,0.00019178,2]